Cogmind - Beta 13 @@@ ROGUE MODE // 2024.03.15 @ 14:15:15 Player: Cmdr.Laserstrahl Result: Destroyed by G-67 Veteran with Plasma Rifle Performance ------------- Evolutions (4) 2000 Regions Visited (8) 1600 Robots Destroyed (175) 875 Value Destroyed (5114) 5114 Prototype IDs (5) 100 Alien Tech Used (0) 0 Bonus (435) 435 TOTAL SCORE: 10124 Bonus ------- High Alert Combat Kills 435 Cogmind --------- Core Integrity 0/850 Matter 272/300 Energy 283/300 System Corruption 6% Temperature Cool (12) Movement Rolling (95) Ox1 Location -6/Factory Parts ------- > --- POWER (1) -------- Angular Momentum Engine > --- PROPULSION (3) --- Medium Treads Wheel Wheel > --- UTILITY (8) ------ Advanced Heat Sink Advanced Signal Interpreter Launcher Guidance Computer Target Analyzer Hardened Light Armor Plating Hardened Light Armor Plating > --- WEAPON (3) ------- EM Pulse Cannon > --- INVENTORY (5) ---- Cooled Ion Engine Improved Hacking Suite Long-range Missile Launcher Peak State ------------ > --- POWER ------------ F-cell Engine > --- PROPULSION ------- Compact Wheel Armored Huge Wheel > --- UTILITY ---------- Improved Cooling System Large Storage Unit Improved Sensor Array Improved Signal Interpreter Target Analyzer Energy Filter Hardened Light Armor Plating Improved Hardlight Generator > --- WEAPON ----------- Heavy Ion Cannon Gauss Cannon Gauss Cannon > --- INVENTORY -------- Cooled Ion Engine Improved Deuterium Engine F-cell Engine Armored Treads Medium Treads Launcher Guidance Computer Improved Hacking Suite System Restoration Module EM Pulse Cannon Heavy Particle Cannon Improved Light Cannon Advanced Assault Cannon EMP Blaster Long-range Missile Launcher Long-range Missile Launcher [Rating: 57] Favorites ----------- Power Heavy Deuterium Engine Engine Heavy Deuterium Engine Reactor Antimatter Reactor Propulsion Light Treads Treads Light Treads Leg Carbon-fiber Leg Wheel Compact Wheel Utility Large Storage Unit Device Improved Cooling System Storage Large Storage Unit Processor Improved Targeting Computer Protection Medium Reactive Plating Weapon Maul Energy Gun Medium Laser Energy Cannon Heavy Ion Cannon Ballistic Gun Improved Assault Rifle Ballistic Cannon Gauss Cannon Launcher Long-range Missile Launcher Impact Weapon Maul Build | -11 -10 -9 -9 -8 -7 -6 -6 -6 ------- Run | Yrd Mat Mat Min Mat Fac Fac Was Fac Slots Evolved 8 | . . 2 . 2 2 2 . . Power . | . . . . . . . . . Propulsion 1 | . . 1 . . . . . . Utility 6 | . . 1 . 1 2 2 . . Weapon 1 | . . . . 1 . . . . Parts Attached 142 | 8 7 22 4 28 26 4 1 42 Power 13 | 1 1 4 . 1 2 . 1 3 Engine 12 | 1 1 4 . 1 2 . . 3 Core . | . . . . . . . . . Reactor 1 | . . . . . . . 1 . Propulsion 34 | 3 . 5 . 9 9 1 . 7 Treads 12 | . . 4 . 2 4 . . 2 Leg 1 | . . . . . . . . 1 Wheel 21 | 3 . 1 . 7 5 1 . 4 Hover . | . . . . . . . . . Flight . | . . . . . . . . . Utility 54 | 2 3 5 2 8 10 3 . 21 Device 29 | 1 2 4 1 3 5 2 . 11 Storage 2 | 1 1 . . . . . . . Processor 9 | . . 1 . 2 2 . . 4 Hackware . | . . . . . . . . . Protection 14 | . . . 1 3 3 1 . 6 Artifact . | . . . . . . . . . Weapon 41 | 2 3 8 2 10 5 . . 11 Energy Gun 6 | 2 3 1 . . . . . . Energy Cannon 9 | . . 3 . 1 1 . . 4 Ballistic Gun 1 | . . 1 . . . . . . Ballistic Cannon 13 | . . 3 . 3 4 . . 3 Launcher 8 | . . . . 4 . . . 4 Special Weapon . | . . . . . . . . . Impact Weapon 4 | . . . 2 2 . . . . Slashing Weapon . | . . . . . . . . . Piercing Weapon . | . . . . . . . . . Special Melee Weapon . | . . . . . . . . . Unidentified Prototypes 5 | . . 3 . 1 . . . 1 Corrupted Parts 4 | 2 . . . 1 . . . 1 System Corruption 17 | 3 . . . 10 . . . 4 Parts Lost 49 | . . 3 . 14 3 . . 29 Power 1 | . . . . . . . . 1 Propulsion 14 | . . 2 . 6 1 . . 5 Utility 20 | . . 1 . 4 2 . . 13 Weapon 14 | . . . . 4 . . . 10 Highest Loss Streak 18 | . . 2 . 8 1 . . 18 To Critical Strikes . | . . . . . . . . . Average Slot Usage (%) 93 | . 99 98 99 87 98 95 93 82 Engine 7 | . 14 11 11 9 6 6 . 2 Treads 11 | . . 28 33 10 9 . . 2 Wheel 11 | . 28 4 . 14 12 15 13 9 Device 13 | . 13 15 20 9 7 21 20 17 Storage 7 | . 14 11 11 9 7 6 6 4 Processor 10 | . . 5 . 4 20 13 13 8 Protection 7 | . . . 1 6 8 11 13 13 Energy Gun 2 | . 27 5 . . . . . . Energy Cannon 2 | . . 5 5 1 . . . 3 Ballistic Cannon 9 | . . 10 4 7 9 20 20 11 Impact Weapon 6 | . . . 12 14 12 . . . Naked Turns . | . . . . . . . . . Heaviest Build 94 | 13 32 42 42 50 77 86 91 94 Greatest Support 60 | 32 32 60 60 60 60 40 40 48 Greatest Overweight (x) 4 | . . . . 2 4 2 2 3 Average Overweight (x) . | . . . . . . 2 2 1 Largest Inventory Capacity 15 | 8 15 15 15 15 15 15 15 15 Average Capacity 14 | 6 13 15 15 15 15 15 15 12 Most Carried 15 | 8 15 15 15 15 15 15 15 15 Average Carried 13 | 5 9 14 14 13 14 14 15 12 Final Capacity 15 | 8 15 15 15 15 15 15 15 5 Final Carried 15 | 8 15 15 15 15 15 15 15 3 Class Distribution -------------------- 42% | Mutant 25% | Gladiator 15% | Gunner 11% | Tank 4% | Scavenger-Mutant Dominant Class ---------------- Mutant | -10/Materials Mutant | -9/Materials Mutant | -9/Mines Mutant | -8/Materials Gladiator | -7/Factory Gunner | -6/Factory Gunner | -6/Waste Tank | -6/Factory Resources | -11 -10 -9 -9 -8 -7 -6 -6 -6 ----------- Run | Yrd Mat Mat Min Mat Fac Fac Was Fac Matter Collected 4215 | 258 88 765 67 548 715 . 61 1713 Remotely 54 | . . . . 54 . . . . Salvage Created 6084 | 96 90 1181 47 753 1205 . . 2712 Parts 297 | 6 6 76 . 33 54 . . 122 Haulers Intercepted 15 | . . 6 . 3 3 . . 3 Recyclers Shooed 17 | 1 1 3 . 1 . . . 11 Parts Field Recycled . | . . . . . . . . . Retrieved Matter . | . . . . . . . . . Parts Self-Destructed . | . . . . . . . . . Prevented . | . . . . . . . . . Kills | -11 -10 -9 -9 -8 -7 -6 -6 -6 ------- Run | Yrd Mat Mat Min Mat Fac Fac Was Fac Combat Hostiles Destroyed 102 | . 3 19 2 15 21 . . 42 Melee 14 | . . . 2 4 7 . . 1 Guns 5 | . 3 2 . . . . . . Cannons 60 | . . 17 . 3 10 . . 30 AOE 15 | . . . . 5 . . . 10 Classes Destroyed 18 | 2 3 5 1 2 4 . . 1 Worker 12 | . 1 1 . . 2 . . 8 Builder 11 | . . 1 . 1 3 . . 6 Tunneler 2 | 1 . . 1 . . . . . Hauler 15 | . . 6 . 3 3 . . 3 Recycler 20 | 1 . 4 . 2 4 . . 9 Mechanic 3 | . . . . . . . . 3 Operator 2 | . . . . . 2 . . . Watcher 10 | . 1 4 . 1 2 . . 2 Swarmer 29 | . 3 7 . 3 . . . 16 Grunt 40 | . . 6 . 5 11 . . 18 Brawler 1 | . . 1 . . . . . . Duelist 1 | . . . . . 1 . . . Sentry 16 | . . 5 . 4 5 . . 2 Specialist 2 | . . . . 2 . . . . Hunter 4 | . . . . . 1 . . 3 Programmer 6 | . . . . . 3 . . 3 Heavy 1 | . . . . 1 . . . . Assembled 2 | . . . 2 . . . . . Best Kill Streak 13 | 1 4 6 1 5 6 . . 13 Combat Bots Only 6 | . 3 6 1 4 3 . . 6 Max Kills in Single Turn 5 | 1 1 2 1 3 1 . . 5 Gunslinging . | . . . . . . . . . Exploded 3 | . . . . 2 . . . 3 Melee 1 | . . . 1 1 1 . . 1 Uniques/NPCs Destroyed . | . . . . . . . . . Combat | -11 -10 -9 -9 -8 -7 -6 -6 -6 -------- Run | Yrd Mat Mat Min Mat Fac Fac Was Fac Hostile Shots Fired 1147 | . 15 116 6 129 376 . . 505 Missed 345 | . 2 23 1 26 132 . . 161 Damage Taken 10302 | 36 109 1089 120 1843 2284 . . 4821 Core 1754 | 2 43 176 66 376 228 . . 863 Absorbed by Shields 793 | . . . . . 364 . . 429 Redirected to Shielding 231 | . . . . 70 161 . . . Ignored by Resistances 284 | . . . . . . . . 284 Regen/Repaired (Parts) 88 | . . 88 . . . . . . Core Remaining (%) 63 | 99 82 . 39 31 67 . . . Volleys Fired 358 | 5 13 94 . 33 65 . . 148 Largest 3 | 2 2 2 . 3 3 . . 3 Hottest 161 | 80 100 112 . 156 135 . . 161 Shots Fired 698 | 10 26 173 . 55 85 . . 349 Gun 65 | 10 26 29 . . . . . . Cannon 599 | . . 144 . 42 85 . . 328 Launcher 34 | . . . . 13 . . . 21 Special . | . . . . . . . . . Kinetic 470 | . . 93 . 33 85 . . 259 Thermal 162 | . 12 80 . 9 . . . 61 Explosive 25 | . . . . 9 . . . 16 Electromagnetic 41 | 10 14 . . 4 . . . 13 Robot Hit Streak 10 | 4 3 8 . 10 9 . . 10 Robot Miss Streak 6 | 1 2 6 . 4 2 . . 5 Penetration Max . | . . . . . . . . . Secondary Targets . | . . . . . . . . . Shots Hit Robots 451 | 7 12 88 5 57 107 . . 175 Core Hits 240 | 3 6 36 3 33 38 . . 121 Critical Kills 2 | . . . . 1 1 . . . Critical Parts Destroyed 12 | . . . . 5 7 . . . Critical Strikes 46 | . 2 8 . 8 12 . . 16 Burn 3 | . 1 2 . . . . . . Blast 25 | . . 6 . . 3 . . 16 Corrupt 1 | . 1 . . . . . . . Smash 17 | . . . . 8 9 . . . Melee Attacks 135 | . . . 13 59 63 . . . Impact 135 | . . . 13 59 63 . . . Slashing . | . . . . . . . . . Piercing . | . . . . . . . . . Sneak Attacks 8 | . . . 1 4 3 . . . Combat Hostiles 2 | . . . . 2 . . . . Follow-up Attacks 14 | . . . 1 5 8 . . . Damage Inflicted 17208 | 137 151 2262 239 2375 3823 . . 8221 Guns 513 | 90 151 272 . . . . . . Cannons 9028 | . . 1872 . 568 1656 . . 4932 Explosions 4398 | 47 . 114 . 798 165 . . 3274 Melee 3248 | . . . 237 1009 2002 . . . Ramming 21 | . . 4 2 . . . . 15 Kinetic 7280 | . . 1214 . 422 1656 . . 3988 Thermal 2954 | 47 76 1044 . 367 131 . . 1289 Explosive 2992 | . . . . 541 34 . . 2417 Electromagnetic 713 | 90 75 . . 36 . . . 512 Impact 3248 | . . . 237 1009 2002 . . . Slashing . | . . . . . . . . . Piercing . | . . . . . . . . . Highest Corruption 10 | 3 3 3 3 10 3 . . 6 Average Corruption 3 | 2 3 3 3 10 2 . . 2 Corruption Purged . | . . . . . . . . . Corruption Blocked . | . . . . . . . . . Effects 67 | 1 5 17 10 6 19 . . 9 Message Errors 17 | . . 6 1 2 6 . . 2 Matter Fused 11 | . . 1 4 1 3 . . 2 Heat Flow Errors 6 | . . 1 2 . 3 . . . Energy Discharges 8 | . 1 2 . . 4 . . 1 Parts Fused 2 | . . . . 1 . . . 1 Data Loss (minor) 13 | . 4 3 2 2 2 . . . Data Loss (major) 3 | . . . 1 . . . . 2 Misfires 1 | . . 1 . . . . . . Alerts 3 | 1 . 1 . . 1 . . . Weapon Failures 3 | . . 2 . . . . . 1 Overload Shots . | . . . . . . . . . Overflow Damage 1229 | . . 125 65 297 399 . . 343 Projectiles 177 | . . 33 . . 6 . . 138 Explosions 312 | . . 92 . 15 . . . 205 Melee 740 | . . . 65 282 393 . . . Knockbacks 84 | . . 13 1 8 20 . . 42 Impact 10 | . . . 1 1 8 . . . Kinetic 70 | . . 12 . 6 12 . . 40 Secondary 4 | . . 1 . 1 . . . 2 Self-Inflicted Damage 531 | 34 . 8 . 88 269 . . 132 Shots 13 | 1 . 1 . 4 3 . . 4 Rammed 9 | 1 . 2 1 . . . . 5 Targets Rammed 10 | 1 . 2 1 . . . . 6 Kicked . | . . . . . . . . . Crushed 1 | . . . . . . . . 1 Highest Temperature 513 | 64 117 441 180 476 513 . . 363 Average Temperature 91 | 27 46 142 88 184 89 . . 68 Received Heat Transfer 2733 | . . 234 40 459 517 . . 1483 Effects 14 | . . 7 . 3 4 . . . Shutdowns 3 | . . 1 . 1 1 . . . Energy Bleed 1 | . . 1 . . . . . . Interference 7 | . . 2 . 2 3 . . . Damage (major) 3 | . . 3 . . . . . . Siege Activations . | . . . . . . . . . Robots Corrupted . | . . . . . . . . . Combat Hostiles . | . . . . . . . . . Parts Fried 16 | 1 1 . . 3 8 . . 3 Impact Corruptions 35 | . . . 4 13 17 . . 1 Robots Melted . | . . . . . . . . . Combat Hostiles . | . . . . . . . . . Parts Melted 1 | . . . . 1 . . . . Heat Transferred 4300 | . 296 2159 . 459 100 . . 1286 Parts Sabotaged . | . . . . . . . . . Parts Stolen . | . . . . . . . . . Parts Stripped . | . . . . . . . . . Power Chain Reactions 2 | 1 . . . . . . . 1 Alert | -11 -10 -9 -9 -8 -7 -6 -6 -6 ------- Run | Yrd Mat Mat Min Mat Fac Fac Was Fac Peak Influence 1051 | 10 128 413 184 352 477 170 59 1051 Initial 170 | . 6 1 160 . 159 170 59 41 Average 261 | 4 85 255 135 95 287 170 59 484 Maximum Alert Level 3 | . . 2 . 1 2 . . 3 Low Security (%) 44 | 100 100 19 100 86 25 100 100 10 Level 1 37 | . . 79 . 13 48 . . 40 Level 2 13 | . . 1 . . 26 . . 25 Level 3 4 | . . . . . . . . 23 Level 4 . | . . . . . . . . . Level 5 . | . . . . . . . . . High Security . | . . . . . . . . . Max Security . | . . . . . . . . . Squads Dispatched 33 | . 1 2 . 4 9 . . 17 Investigation 7 | . 1 1 . 1 4 . . . Extermination 5 | . . . . . 3 . . 2 Reinforcement 9 | . . 1 . 2 1 . . 5 Assault 2 | . . . . 1 . . . 1 Garrison 10 | . . . . . 1 . . 9 Intercept . | . . . . . . . . . Searches Triggered . | . . . . . . . . . Construction Impeded 2 | . . . . . . . . 2 Haulers Reinforced 3 | . . . . . 1 . . 2 Active Scanning Responses . | . . . . . . . . . Cargo Convoy Interrupts . | . . . . . . . . . Stealth | -11 -10 -9 -9 -8 -7 -6 -6 -6 --------- Run | Yrd Mat Mat Min Mat Fac Fac Was Fac Distress Signals 12 | . 1 6 . 2 2 . . 1 Communications Jammed . | . . . . . . . . . Distress Signals . | . . . . . . . . . Times Spotted 155 | . 7 34 2 19 30 2 . 61 Peak Tracking Total 7 | . 3 7 1 5 5 1 . 6 Tactical Retreats 8 | . . 2 . 2 1 . . 3 Traps | -11 -10 -9 -9 -8 -7 -6 -6 -6 ------- Run | Yrd Mat Mat Min Mat Fac Fac Was Fac Traps Triggered 10 | . 1 1 . 1 1 1 . 5 Indirectly 3 | . . . . . . . . 3 Trap Hack Attempts . | . . . . . . . . . Triggered . | . . . . . . . . . Disarmed . | . . . . . . . . . Reprogrammed . | . . . . . . . . . Reused . | . . . . . . . . . Traps Extracted . | . . . . . . . . . Installed . | . . . . . . . . . Triggered . | . . . . . . . . . Machines | -11 -10 -9 -9 -8 -7 -6 -6 -6 ---------- Run | Yrd Mat Mat Min Mat Fac Fac Was Fac Machines Disabled 28 | . . 2 . 5 7 . . 14 Max in Single Turn 5 | . . 1 . 3 5 . . 4 Garrison Access 1 | . . . . 1 . . . . Machines Repaired . | . . . . . . . . . Machines Dismantled . | . . . . . . . . . Machines Sabotaged . | . . . . . . . . . Overloaded Fab Kills . | . . . . . . . . . Hacking | -11 -10 -9 -9 -8 -7 -6 -6 -6 --------- Run | Yrd Mat Mat Min Mat Fac Fac Was Fac Machines Accessed 28 | . 5 6 . 3 10 . . 4 Terminals 17 | . 4 4 . 2 6 . . 1 Fabricators 1 | . . . . . 1 . . . Repair Stations 3 | . . 1 . . 1 . . 1 Recycling Units 4 | . 1 . . . 2 . . 1 Scanalyzers 3 | . . 1 . 1 . . . 1 Garrison Access . | . . . . . . . . . Total Hacks 87 | . 11 21 . 23 20 . . 12 Successful 54 | . 5 13 . 19 9 . . 8 Failed 33 | . 6 8 . 4 11 . . 4 Catastrophic 8 | . . . . 1 6 . . 1 Database Lockouts . | . . . . . . . . . Manual 3 | . 2 . . 1 . . . . Terminals 42 | . 10 12 . 5 14 . . 1 Fabricators 2 | . . . . . 2 . . . Repair Stations 8 | . . 4 . . 2 . . 2 Recycling Units 5 | . 1 . . . 2 . . 2 Scanalyzers 30 | . . 5 . 18 . . . 7 Garrison Access . | . . . . . . . . . Terminal Hacks 18 | . 4 6 . 2 6 . . . Part Schematic 2 | . . . . . 2 . . . Robot Analysis 1 | . 1 . . . . . . . Level Access Points 1 | . 1 . . . . . . . Branch Access Points 1 | . . . . . 1 . . . Emergency Access Points 1 | . . 1 . . . . . . Scanalyzer Index 1 | . . 1 . . . . . . Alert Level 3 | . . . . 1 2 . . . Unreport Threat 1 | . . . . . 1 . . . Locate Traps 5 | . 2 2 . 1 . . . . Hauler Manifests 1 | . . 1 . . . . . . Zone Layout 1 | . . 1 . . . . . . Fabricator Hacks 2 | . . . . . 2 . . . Load Schematic 1 | . . . . . 1 . . . Build 1 | . . . . . 1 . . . Repair Station Hacks 4 | . . 2 . . 1 . . 1 Scan Component 3 | . . 1 . . 1 . . 1 Repair 1 | . . 1 . . . . . . Recycling Unit Hacks 3 | . 1 . . . . . . 2 Report Inventory 3 | . 1 . . . . . . 2 Scanalyzer 27 | . . 5 . 17 . . . 5 Insert Component 12 | . . 2 . 8 . . . 2 Analyze 15 | . . 3 . 9 . . . 3 Garrison Access Hacks . | . . . . . . . . . Unauthorized Hacks . | . . . . . . . . . Terminals . | . . . . . . . . . Fabricators . | . . . . . . . . . Repair Stations . | . . . . . . . . . Recycling Units . | . . . . . . . . . Scanalyzers . | . . . . . . . . . Garrison Access . | . . . . . . . . . Data Cores Recovered 1 | . . . . . 1 . . . Used . | . . . . . . . . . Hacking Detections 23 | . 5 4 . 2 9 . . 3 Full Trace Events 5 | . . 1 . 1 3 . . . Feedback Events . | . . . . . . . . . Feedback Blocked . | . . . . . . . . . Robot Schematics Acquired . | . . . . . . . . . Robots Built . | . . . . . . . . . Authchips . | . . . . . . . . . Time . | . . . . . . . . . Total Robot Build Rating . | . . . . . . . . . Part Schematics Acquired 13 | . . 2 . 8 2 . . 1 Parts Built 2 | . . . . . 2 . . . Authchips . | . . . . . . . . . Time 106 | . . . . . 106 . . . Total Part Build Rating 12 | . . . . . 12 . . . Parts Repaired 1 | . . 1 . . . . . . Time 38 | . . 38 . . . . . . Parts Recycled . | . . . . . . . . . Recycled Matter . | . . . . . . . . . Retrieved Matter . | . . . . . . . . . Retrieved Components . | . . . . . . . . . Parts Scanalyzed 12 | . . 2 . 8 . . . 2 Part Schematics Acquired 11 | . . 2 . 8 . . . 1 Parts Damaged 1 | . . . . . . . . 1 Bothacking | -11 -10 -9 -9 -8 -7 -6 -6 -6 ------------ Run | Yrd Mat Mat Min Mat Fac Fac Was Fac Used RIF Installer . | . . . . . . . . . Robots Hacked . | . . . . . . . . . Non-combat . | . . . . . . . . . Combat . | . . . . . . . . . Robot Hacks Applied . | . . . . . . . . . Relay Couplers Released . | . . . . . . . . . Fabnet Peak Effective % . | . . . . . . . . . Robots Rewired . | . . . . . . . . . Allies Hacked . | . . . . . . . . . Hacks Repelled . | . . . . . . . . . Allies | -11 -10 -9 -9 -8 -7 -6 -6 -6 -------- Run | Yrd Mat Mat Min Mat Fac Fac Was Fac Total Allies . | . . . . . . . . . Largest Group . | . . . . . . . . . Highest-Rated Group . | . . . . . . . . . Highest-Rated Ally . | . . . . . . . . . Total Orders . | . . . . . . . . . Ally Attacks . | . . . . . . . . . Total Damage . | . . . . . . . . . Kills . | . . . . . . . . . Allies Corrupted . | . . . . . . . . . Allies Melted . | . . . . . . . . . Intel | -11 -10 -9 -9 -8 -7 -6 -6 -6 ------- Run | Yrd Mat Mat Min Mat Fac Fac Was Fac Robot Analysis Total 1 | . 1 . . . . . . . Derelict Logs Recovered 1 | . . . 1 . . . . . Drone Launches . | . . . . . . . . . Drone Recoveries . | . . . . . . . . . Exploration | -11 -10 -9 -9 -8 -7 -6 -6 -6 ------------- Run | Yrd Mat Mat Min Mat Fac Fac Was Fac Turns Passed 7363 | 104 461 1129 496 899 2267 245 238 1524 Spaces Moved 4174 | 55 392 479 269 433 1414 191 190 751 Core 2 | 2 . . . . . . . . Treads 1355 | . . 419 269 155 374 . . 138 Legs . | . . . . . . . . . Wheels 2817 | 53 392 60 . 278 1040 191 190 613 Hover . | . . . . . . . . . Flight . | . . . . . . . . . Fastest Speed 50 | 50 100 93 160 93 105 120 125 95 Average Speed 130 | 98 100 151 160 132 128 123 125 129 Slowest Speed 330 | 100 100 160 160 240 330 125 125 240 Overloaded Moves . | . . . . . . . . . Propulsion Burnouts . | . . . . . . . . . Robots Hopped . | . . . . . . . . . Cave-ins Triggered . | . . . . . . . . . Exploration Rate (%) 37 | 4 58 58 51 21 31 7 88 22 Regions Visited 8 Branch Regions 1 Pre-discovered Areas 1 | . . . 1 . . . . . Known Exits Taken 1 | . 1 . . . . . . . Unknown Exits Taken 5 | 1 . 1 1 1 1 . . . Scrap Searched 1 | . . . 1 . . . . . Spaces Dug 19 | . . 1 6 11 . . . 1 Terrain Destroyed 457 | 2 . 36 6 114 52 . . 247 Melee 17 | . . . 6 11 . . . . Projectile 97 | . . 17 . 4 12 . . 64 AOE 343 | 2 . 19 . 99 40 . . 183 Terrain Rammed . | . . . . . . . . . Walls Destroyed . | . . . . . . . . . Machines Disabled . | . . . . . . . . . Actions | -11 -10 -9 -9 -8 -7 -6 -6 -6 --------- Run | Yrd Mat Mat Min Mat Fac Fac Was Fac Total 5246 | 94 436 714 310 609 1678 202 191 1012 Wait 258 | 13 6 72 18 42 83 . . 24 Move 4168 | 55 391 478 268 432 1413 191 189 751 Hop . | . . . . . . . . . Pick Up 116 | 12 12 23 4 20 16 4 . 25 Fast Attach 36 | 3 3 4 . 1 13 . . 12 Attach 66 | 5 2 11 1 16 4 3 . 24 Detach 5 | 1 . . . 1 2 . . 1 Swap 40 | . 2 7 3 11 9 1 1 6 Drop 80 | . 7 23 3 6 22 3 1 15 Fire 358 | 5 13 94 . 33 65 . . 148 Melee 110 | . . . 12 47 51 . . . Ram 1 | . . . . . . . . 1 Kick . | . . . . . . . . . Crush 8 | . . 2 1 . . . . 5 Escape Stasis . | . . . . . . . . . Rewire . | . . . . . . . . . Trap . | . . . . . . . . . Miscellaneous . | . . . . . . . . . Route ------- -11/Scrapyard -10/Materials (discovered 4 exits: *Mat x3 / [*Min]) -9/Materials (discovered 2 exits: [*Min x2]) -9/Mines -8/Materials -7/Factory (discovered 4 exits: [*Fac] / Sto / *Low x2) -6/Factory -6/Waste -6/Factory (discovered 1 exit: [*Fac]) History --------- Turn | Location | Event 18 | -11/Scrapyard | Discovered new exit (range 16) 105 | -11/Scrapyard | Entered Materials 320 | -10/Materials | Build established: Mutant 349 | -10/Materials | Discovered new exit (range 16) 379 | -10/Materials | Discovered new exit (range 16) 466 | -10/Materials | Identified exit to Materials 566 | -10/Materials | Entered another Materials area 566 | -9/Materials | Evolved 2 slots: Propulsion x1, Utility x1 844 | -9/Materials | Discovered new exit (range 14) 1386 | -9/Materials | Repaired Assault Cannon 1645 | -9/Materials | Discovered new exit (range 14) 1695 | -9/Materials | Entered Mines 1707 | -9/Mines | Met a Derelict bent on vengeance 1803 | -9/Mines | Assembled infested the area 2056 | -9/Mines | Received a Rocket Launcher from a helpful Derelict 2081 | -9/Mines | Learned location of Storage (-7) 2133 | -9/Mines | Core integrity fell below 50% 2177 | -9/Mines | Discovered new exit (range 6) 2191 | -9/Mines | Entered Materials 2191 | -8/Materials | Evolved 2 slots: Utility x1, Weapon x1 2463 | -8/Materials | Lost 3 parts (1n1u1w) 2610 | -8/Materials | Lost 8 parts (3n2u3w) 2774 | -8/Materials | Core integrity fell below 50% 2858 | -8/Materials | Discovered new exit (range 15) 2908 | -8/Materials | System corruption reached 10% 3090 | -8/Materials | Entered Factory 3090 | -7/Factory | Evolved 2 slots: Utility x2 3422 | -7/Factory | Build established: Gladiator 4202 | -7/Factory | Discovered new exit (range 4) 4274 | -7/Factory | Identified exit to Storage 4274 | -7/Factory | Identified exit to Lower Caves 5157 | -7/Factory | Discovered new exit (range 13) 5263 | -7/Factory | Garrison activated, responded to threat 5280 | -7/Factory | Build established: Gunner 5342 | -7/Factory | Fabricated Mass Driver? 5357 | -7/Factory | Entered another Factory area 5357 | -6/Factory | Evolved 2 slots: Utility x2 5602 | -6/Factory | Sucked down chute 5602 | -6/Factory | Entered Waste 5602 | -6/Waste | The area was eerily silent 5828 | -6/Waste | Discovered new exit (range 10) 5840 | -6/Waste | Entered Factory 5853 | -6/Factory | Discovered new exit (range 7) 6218 | -6/Factory | Garrison activated, responded to threat 6396 | -6/Factory | Build established: Tank 6895 | -6/Factory | Garrison activated, responded to threat 6989 | -6/Factory | Core integrity fell below 50% 7037 | -6/Factory | Core integrity fell below 20% 7056 | -6/Factory | Lost 18 parts (1p3n7u7w) 7240 | -6/Factory | First assault squad dispatched 7246 | -6/Factory | Build established: Mutant 7364 | -6/Factory | Destroyed by G-67 Veteran with Plasma Rifle Last Messages --------------- 07346_ Lrn. Missile Launcher destroyed. 07346_ U-05 Engineer lays Concrete. 07347_ U-05 Engineer builds a Wall. 07348_ The unstable cave ceiling collapses. 07348_ K-01 Serf collects debris. 07348_ U-05 Engineer lays Concrete. 07349_ Dropped Carbon-fiber Leg. 07349_ Acquired Wheel. 07349_ U-05 Engineer lays Concrete. 07350_ Slug penetrates Wall. 07350_ Slug penetrates Earth. 07350_ U-05 Engineer lays Concrete. 07350_ K-01 Serf collects debris. 07351_ Penetrated by Slug. 07351_ Adv. Heat Sink destroyed. 07351_ U-05 Engineer lays Concrete. 07351_ U-05 Engineer builds a Wall. 07352_ U-05 Engineer lays Concrete. 07358_ Acquired 2 matter. 07363_ U-05 Engineer lays Concrete. Map ----- +----------------------------------------------------+ | ?????????????# """" """" """" #?#" #???? | | ?????????????# """" """" """" #?##| #??????! " | | ?????????????# """" """" """" #### #??????? " | | ?????????????# + #????????" | | ?????????????# ! ####### #????????? | | ?????????????# # #??# #????????? | | ????????????? +# ####+#+####/# #??# #????????? | | ????????????? % # #??# #????????? | | ????????##### # #??# #????????? | | ????????+ % # ?## #????????? | | ????????# # #?#" ###??????? | | ??? + % # ####+########## | | ???############ + #u #### % | | ??????????# # % # ## " | | ??????????# # # ##?# | | ??????????# ##### ##?# " "" " | | ??????????# % + % ##?# "! =% | | ??????????# #t ##?# == = | | ????????# " # ##?# !%* %= =%! | | ????????# " # #??# = ! !%% | | ????????### # * ##### ##### ## | | ??????????# # % g % %* | | ??????????# # ! g | | ??????????# # ! | | ########??# # %l | | # !! ??############## @ R | | # ! #???????????## ####################+#### | | + "" #???????????## #?????????? # ??? ??? | | # "" #??????####### #???????????### ?????""?? | | # """ #?????## # # # #????????????????????"""? | | # """ ############## #?????????????????????""? | | # """ + % #???????????????????????? | | # # ####???????????????????????? | | #+###+##### # #########????????????????? | | # % # #????????????????? | | # %% ########### # #????????????????? | | % % %%%#????????# # #????????????????? | | ####! #????????# + #????????????????? | | ##?# ##????????# ####+######????????????????? | | ???# ########??# # #?????????????????? | | ???# # ??# # "" #?????????????????? | | ???# # """" ??# % # ""S*#?????????????????? | | ???# # """" ??# # "" #?????????????????? | | ???# # """" ?# + #?????????????????? | | ???# + """" ?# #### """ % !#?????????????????? | | ???# # ## ???# """ #?????????????????? | | ???# # ## ???# """ #?????????????????? | | ???# # ## ???# #?????????????????? | | ???# # ## ???##########?????????????????? | | ???# ########### ??????????????????????????????? | +----------------------------------------------------+ Best States ------------- Heat Dissipation 75 Energy Generation 21 Energy Capacity 500 Matter Stores 300 Matter Capacity 300 Sight Range 16 Robot Scan Range 15 Terrain Scan Range 16 Terrain Scan Density 10 Armor Coverage 600 Resistance: KI 30 Utility Shielding 66 Weapon Shielding 66 Evasion (%) 41 Targeting Accuracy 12 Melee Accuracy 6 Launcher Accuracy 20 Target Analysis 5 Recoil Reduction 3 Matter Filtering 30 Energy Filtering 30 Kinecelleration 30 Item Schematics ----------------- Cooling System | -9/Materials | Scanalyzed Assault Cannon | -9/Materials | Scanalyzed Imp. Targeting Computer | -8/Materials | Scanalyzed Rocket Launcher | -8/Materials | Scanalyzed Hvy. EM Pulse Gun | -8/Materials | Scanalyzed Hvy. Deuterium Engine | -8/Materials | Scanalyzed Imp. Cooling System | -8/Materials | Scanalyzed Energy Filter | -8/Materials | Scanalyzed Hvy. Particle Cannon | -8/Materials | Scanalyzed Imp. Weapon Shielding | -8/Materials | Scanalyzed Greatsword | -7/Factory | Hacked Mass Driver | -7/Factory | Hacked Hrd. Light Armor Plating | -6/Factory | Scanalyzed Robot Schematics ------------------ None Fabricated ------------ Mass Driver | x2 | -7/Factory Alien Tech Used ----------------- None Achievements -------------- None Challenges ------------ None Game ------ Seed PotentialSwarmPenetrator Manual? 0 Play Time 02:37:25 Cumulative 170.9 hours Start 2024.03.15 @ 09:39:54 End 2024.03.15 @ 14:15:15 Sessions 3 Manual Loads 0 Difficulty Rogue Special Mode None Game No. 79 Rogue 76 Adventurer 3 Explorer 0 Win Type - Total 0 Types 0/0/0/0/0/0/0/0/0 Lore% 24 Gallery% 45 Achievement% 30 Wizard Run 0 Options --------- Layout 2 ASCII 0 Keyboard 0 Movement Mouse Keybinds 0 Fullscreen 2 Font 24/Smallcaps Map View 50x44 Zoom Use 0% Tactical HUD 1 Map Filters NONE Filters NONE Steam 1 RUN: bb5154ad-6677-4590-81af-8f6d349f0790